bitfinex-derivatives/quotes_SOLF0:USTF0_20250709
["timestamp","ask_amount","ask_price","bid_price","bid_amount"]
[1752090225750,6.3961,156.31,156.28,6.3969]
[1752090226052,6.3956,156.32,156.29,6.3965]
[1752090226754,6.18289943,156.33,156.28,6.397]
[1752090227257,6.3961,156.31,156.28,6.397]
[1752090227660,6.18289943,156.33,156.25,552.58]
[1752090227851,6.3955,156.32,156.25,558.76289943]
[1752090228053,12.7854,156.39,156.28,6.3969]
[1752090228256,6.18289943,156.33,156.28,6.3969]
[1752090228450,6.3962,156.31,156.28,6.3969]
[1752090229057,6.3957,156.32,156.29,6.3966]
[1752090229356,8.42451068,156.41,156.31,6.18571068]
[1752090229549,6.3933,156.38,156.31,6.18571068]
[1752090229849,8.42451068,156.41,156.31,6.18571068]
[1752090230252,6.3933,156.38,156.35,6.394]
[1752090230653,8.42451068,156.41,156.31,6.18571068]
[1752090230860,6.18571068,156.39,156.3,8.47171068]
[1752090231364,6.3942,156.36,156.33,6.3948]
[1752090231658,6.18571068,156.39,156.3,8.47171068]
[1752090233160,8.42451068,156.41,156.32,6.18571068]
[1752090233459,6.3929,156.39,156.36,6.3936]
[1752090233662,2.2388,156.41,156.32,6.18571068]
[1752090233864,2.2565,156.42,156.32,6.18571068]
[1752090234064,6.3926,156.39,156.36,6.3935]
[1752090234265,2.2565,156.42,156.32,6.18571068]
[1752090234764,2.2565,156.42,156.36,6.3936]
[1752090235872,6.3928,156.39,156.36,6.3936]
[1752090236870,6.3928,156.39,156.35,6.394]
[1752090237169,6.3928,156.39,156.32,68.18571068]
[1752090237567,6.18571068,156.44,156.34,6.18571068]
[1752090238668,6.18571068,156.44,156.36,6.18571068]
[1752090238972,2.2018,156.45,156.36,6.18571068]
[1752090239569,6.3916,156.42,156.39,6.3924]
[1752090239964,555.1409,156.46,156.36,6.18571068]
[1752090240170,6.3917,156.42,156.39,6.3923]
[1752090240672,6.3917,156.42,156.39,6.3924]
[1752090241068,6.3917,156.42,156.35,68.18571068]
[1752090241875,6.1770693,156.45,156.37,6.3931]
[1752090242076,6.1770693,156.45,156.35,6.1770693]
[1752090242472,6.3923,156.4,156.37,6.3933]
[1752090243168,6.3923,156.4,156.38,6.3929]
[1752090243372,6.3923,156.4,156.36,4.11880592]
[1752090245175,6.392,156.41,156.36,4.11880592]
[1752090245570,555.1409,156.46,156.36,4.11880592]
[1752090245876,6.3921,156.41,156.36,4.11880592]
[1752090246476,4.11880592,156.45,156.36,4.11880592]
[1752090247076,6.3924,156.4,156.36,4.11880592]
[1752090247376,555.1409,156.46,156.36,4.11880592]
[1752090247576,6.3925,156.4,156.36,4.11880592]
[1752090247879,4.11880592,156.44,156.36,4.11880592]
[1752090248077,4.11880592,156.4,156.33,11.00432508]
[1752090248278,4.11880592,156.4,156.32,4.11880592]
[1752090248470,567.9212,156.46,156.32,4.11880592]
[1752090248676,6.3937,156.37,156.32,4.11880592]
[1752090248875,4.11880592,156.41,156.32,4.11880592]
[1752090249075,4.11880592,156.39,156.32,4.11880592]
[1752090249276,12.7823,156.43,156.3,15.099931]
[1752090249479,4.11880592,156.38,156.3,15.099931]
[1752090249677,4.11880592,156.38,156.3,6.40480592]
[1752090250378,4.11880592,156.36,156.28,4.11880592]
[1752090250681,2.2941,156.37,156.27,12.81842063]
[1752090250878,6.41739555,156.37,156.29,4.12329555]
[1752090252185,4.12329555,156.35,156.27,12.81842063]
[1752090252686,4.12329555,156.35,156.27,4.12329555]
[1752090252985,6.3962,156.31,156.27,10.52079555]
[1752090253785,4.12329555,156.36,156.26,8.69512508]
[1752090253984,4.12329555,156.36,156.27,4.12329555]
[1752090254388,6.3957,156.32,156.28,6.397]
[1752090254580,4.12329555,156.36,156.27,4.12329555]
[1752090254885,6.3957,156.32,156.27,10.52039555]
[1752090255084,2.2941,156.37,156.29,4.12329555]
[1752090255286,4.12329555,156.4,156.31,4.12329555]
[1752090255486,6.3945,156.35,156.33,4.12329555]
[1752090256186,6.394,156.36,156.33,4.12329555]
[1752090256386,4.12329555,156.4,156.33,4.12329555]
[1752090256588,6.3941,156.36,156.33,4.12329555]
[1752090256886,4.12329555,156.4,156.32,6.3954]
[1752090257086,6.3942,156.36,156.33,6.395]
[1752090257687,6.3943,156.35,156.32,10.51859555]
[1752090258386,6.3943,156.35,156.33,6.395]
[1752090258586,6.394,156.36,156.33,6.395]
[1752090259087,6.3933,156.38,156.35,6.3941]
[1752090259486,6.3926,156.4,156.33,4.12329555]
[1752090259680,6.3926,156.4,156.35,4.12329555]
[1752090260088,6.3926,156.4,156.37,6.3932]
[1752090260588,4.473,156.42,156.35,4.12329555]
[1752090260786,4.473,156.42,156.34,4.12329555]
[1752090260787,8.59629555,156.42,156.34,4.12329555]
[1752090261083,6.3932,156.38,156.35,6.3941]
[1752090261383,4.12329555,156.4,156.32,2.3286]
[1752090262086,6.3941,156.36,156.32,2.3286]
[1752090262285,4.12329555,156.4,156.33,6.3948]
[1752090262481,6.3935,156.37,156.32,2.3286]
[1752090262793,6.3935,156.37,156.34,6.3944]
[1752090263687,6.3935,156.37,156.35,6.3942]
[1752090263885,4.473,156.42,156.33,4.12329555]
[1752090264083,4.12329555,156.41,156.33,4.12329555]
[1752090264387,6.3929,156.39,156.33,4.12329555]
[1752090264978,6.3924,156.4,156.35,4.12329555]
[1752090265389,6.3924,156.4,156.37,6.3931]
[1752090265687,6.392,156.41,156.35,4.12329555]
[1752090265889,4.473,156.42,156.35,4.12329555]
[1752090266087,4.12329555,156.45,156.37,4.12329555]
[1752090266290,6.3917,156.42,156.37,4.12329555]
[1752090266492,4.12329555,156.45,156.4,6.3921]
[1752090266690,6.3913,156.43,156.4,6.3921]
[1752090266891,4.12329555,156.45,156.4,6.3921]
[1752090267092,4.12329555,156.45,156.39,6.3924]
[1752090267291,4.12329555,156.45,156.37,4.12329555]
[1752090267485,4.12329555,156.43,156.35,4.12329555]
[1752090267687,4.12329555,156.43,156.37,6.3931]
[1752090267889,554.9964,156.46,156.35,4.12329555]
[1752090268084,554.9964,156.46,156.4,6.3922]
[1752090268287,554.9964,156.46,156.39,4.12329555]
[1752090268490,554.9964,156.46,156.34,8.69512508]
[1752090268491,4.12329555,156.45,156.37,4.12329555]
[1752090268692,4.12329555,156.45,156.39,6.3925]
[1752090269098,4.12329555,156.45,156.4,6.3922]
[1752090269599,6.3912,156.43,156.4,6.3922]
[1752090269799,2.1964,156.46,156.41,10.51509555]
[1752090269996,6.3909,156.44,156.41,6.3918]
[1752090270293,6.3909,156.44,156.39,4.12329555]
[1752090270492,8.9017427,156.51,156.42,4.11590678]
[1752090270698,11.86899027,156.53,156.44,4.11590678]
[1752090270699,6.3893,156.48,156.44,4.11590678]
[1752090270992,13.01764948,156.52,156.44,4.11590678]
[1752090270993,11.1103427,156.52,156.44,4.11590678]
[1752090271186,2.2086,156.52,156.46,4.11590678]
[1752090271591,6.3884,156.5,156.46,4.11590678]
[1752090272294,6.3878,156.51,156.41,2.3328]
[1752090272498,2.3252,156.53,156.46,4.11590678]
[1752090272891,2.3252,156.53,156.41,2.3328]
[1752090273099,2.3252,156.53,156.48,4.11590678]
[1752090273502,2.3252,156.53,156.48,10.50450678]
[1752090273996,2.3252,156.53,156.42,62.0]
[1752090274190,6.44110678,156.53,156.45,4.11590678]
[1752090274394,2.3252,156.53,156.47,4.11590678]
[1752090274593,2.3252,156.53,156.47,6.3893]
[1752090274798,2.3252,156.53,156.42,70.70523549]
[1752090274993,2.3252,156.53,156.46,4.11590678]
[1752090275195,2.3252,156.53,156.47,4.11590678]
[1752090275595,2.3252,156.53,156.47,10.50490678]
[1752090275795,6.44110678,156.53,156.47,4.11590678]
[1752090275995,6.44110678,156.53,156.45,4.11590678]
[1752090276197,6.3887,156.49,156.45,10.50590678]
[1752090276396,6.3887,156.49,156.45,4.11590678]
[1752090277103,2.3252,156.53,156.47,4.11590678]
[1752090277301,2.3252,156.53,156.47,10.50490678]
[1752090277703,2.3252,156.53,156.42,70.70523549]
[1752090277891,2.3252,156.53,156.45,4.11590678]
[1752090278204,6.388,156.51,156.45,4.11590678]
[1752090278399,6.388,156.51,156.47,4.11590678]
[1752090278602,2.3252,156.53,156.47,4.11590678]
[1752090278899,2.3252,156.53,156.47,6.3891]
[1752090279100,6.44110678,156.53,156.45,4.11590678]
[1752090279700,6.3876,156.52,156.49,4.11590678]
[1752090279907,2.3252,156.53,156.48,4.11590678]
[1752090280108,2.3252,156.53,156.46,4.11590678]
[1752090280399,2.3252,156.53,156.41,11.03803549]
[1752090280606,2.3252,156.53,156.46,4.11590678]
[1752090281205,2.3252,156.53,156.41,2.3328]
[1752090281397,6.3876,156.52,156.48,6.3887]
[1752090281803,8.7124,156.53,156.48,4.11590678]
[1752090282003,2.3252,156.53,156.41,11.03803549]
[1752090282199,2.3252,156.53,156.48,4.11590678]
[1752090282400,6.3874,156.52,156.48,4.11590678]
[1752090282702,2.3252,156.53,156.47,4.11590678]
[1752090283005,6.3885,156.5,156.47,4.11590678]
[1752090283595,6.3885,156.5,156.46,6.3894]
[1752090283801,6.3886,156.49,156.45,10.50590678]
[1752090284707,6.389,156.48,156.45,10.50590678]
[1752090284905,6.44110678,156.53,156.45,10.50590678]
[1752090285308,2.3252,156.53,156.46,6.3897]
[1752090285505,6.44110678,156.53,156.45,4.11590678]
[1752090285700,6.3884,156.5,156.46,6.3896]
[1752090285911,4.11590678,156.5,156.42,62.0]
[1752090286116,4.11590678,156.5,156.42,4.11590678]
[1752090286304,6.3896,156.47,156.43,6.3909]
[1752090286503,4.11590678,156.5,156.43,6.3909]
[1752090287407,4.11590678,156.48,156.39,4.11590678]
[1752090287602,4.11590678,156.48,156.39,12.82114227]
[1752090287913,2.3252,156.53,156.41,4.11590678]
[1752090288207,4.11590678,156.51,156.43,4.11590678]
[1752090288404,4.11590678,156.51,156.44,6.3903]
[1752090289204,2.3252,156.53,156.45,6.3899]
[1752090289409,4.11590678,156.51,156.42,4.11590678]
[1752090289807,2.3252,156.53,156.4,66.11590678]
[1752090290008,2.3252,156.53,156.46,4.11590678]
[1752090290212,6.3885,156.5,156.46,10.50560678]
[1752090290807,6.3885,156.5,156.46,4.11590678]
[1752090291107,6.3879,156.51,156.47,6.3893]
[1752090291311,6.3879,156.51,156.46,4.11590678]
[1752090292006,2.3252,156.53,156.46,4.11590678]
[1752090292414,6.3874,156.52,156.48,6.3886]
[1752090292911,2.3252,156.53,156.46,4.11590678]
[1752090292912,8.7123,156.53,156.46,4.11590678]
[1752090293107,230.69028337,156.56,156.48,4.11590678]
[1752090293512,226.57437659,156.56,156.48,4.11590678]
[1752090293713,6.3866,156.54,156.5,6.3879]
[1752090293910,2.2086,156.57,156.5,4.11590678]
[1752090294107,4.11590678,156.58,156.52,6.387]
[1752090294913,6.26690678,156.59,156.53,6.3868]
[1752090295112,6.26690678,156.59,156.52,4.11590678]
[1752090295412,6.385,156.58,156.54,6.3862]
[1752090296107,6.26690678,156.59,156.51,62.0]
[1752090296315,2.151,156.59,156.51,62.0]
[1752090296612,6.3856,156.57,156.51,62.0]
[1752090296811,6.26690678,156.59,156.51,62.0]
[1752090297007,2.151,156.59,156.48,4.11590678]
[1752090297207,4.11590678,156.56,156.48,4.11590678]
[1752090297509,2.151,156.59,156.51,6.3877]
[1752090297712,6.3864,156.55,156.51,6.3877]
[1752090297912,4.11590678,156.56,156.51,6.3877]
[1752090298414,2.151,156.59,156.51,6.3877]
[1752090298712,4.11590678,156.56,156.49,4.11590678]
[1752090298907,2.151,156.59,156.48,4.11590678]
[1752090299110,4.11590678,156.54,156.45,4.11590678]
[1752090299313,6.3882,156.5,156.45,0.96875]
[1752090299711,6.3882,156.5,156.47,6.3891]
[1752090299917,6.3879,156.51,156.45,0.96875]
[1752090300113,4.11590678,156.52,156.45,0.96875]
[1752090300318,2.2057,156.55,156.45,5.08465678]
[1752090300614,4.11590678,156.53,156.45,5.08465678]
[1752090300814,4.11590678,156.53,156.45,0.96875]
[1752090301015,6.3875,156.52,156.45,5.08465678]
[1752090301317,6.32160678,156.55,156.47,4.11590678]
[1752090301616,2.2057,156.55,156.49,4.11590678]
[1752090301816,4.11590678,156.57,156.52,6.387]
[1752090302011,6.3863,156.55,156.49,4.11590678]
[1752090302206,4.11590678,156.57,156.49,4.11590678]
[1752090302410,4.11590678,156.55,156.46,4.11590678]
[1752090302607,6.3879,156.51,156.46,4.11590678]
[1752090302812,6.3879,156.51,156.48,6.3887]
[1752090303012,2.151,156.59,156.47,4.11276777]
[1752090303212,4.11276777,156.56,156.47,4.11276777]
[1752090303516,4.11276777,156.55,156.47,4.11276777]
[1752090303716,10.49906777,156.55,156.47,4.11276777]
[1752090303914,10.49906777,156.55,156.52,6.3872]
[1752090303915,6.3863,156.55,156.52,6.3872]
[1752090304119,4.11276777,156.57,156.48,4.11276777]
[1752090304320,4.11276777,156.55,156.46,4.11276777]
[1752090304716,6.3876,156.52,156.46,4.11276777]
[1752090305015,4.11276777,156.53,156.45,5.08151777]
[1752090305211,6.3889,156.49,156.45,0.96875]
[1752090305819,4.11276777,156.51,156.45,0.96875]
[1752090306425,4.11276777,156.49,156.45,0.96875]
[1752090306621,2.2965,156.51,156.45,0.96875]
[1752090306822,6.40926777,156.51,156.45,0.96875]
[1752090307024,6.40926777,156.51,156.46,6.3894]
[1752090307217,6.40926777,156.51,156.45,0.96875]
[1752090307423,6.3892,156.48,156.45,0.96875]
[1752090307623,6.40926777,156.51,156.45,0.96875]
[1752090307823,4.11276777,156.49,156.45,0.96875]
[1752090308023,6.3893,156.48,156.45,0.96875]
[1752090308218,2.2965,156.51,156.45,0.96875]
[1752090308421,6.389,156.48,156.45,0.96875]
[1752090309019,6.3884,156.5,156.45,5.08397833]
[1752090309424,6.3884,156.5,156.47,6.3893]
[1752090309620,6.3884,156.5,156.45,5.08397833]
[1752090310019,6.3884,156.5,156.46,6.3895]
[1752090310220,236.96742197,156.59,156.45,5.08397833]
[1752090310221,8.88742197,156.58,156.45,5.08397833]
[1752090310518,4.11522833,156.57,156.45,0.96875]
[1752090310720,13.39822197,156.6,156.48,4.11221981]
[1752090310927,6.3873,156.53,156.49,6.3885]
[1752090311121,6.3873,156.53,156.48,4.11221981]
[1752090311319,4.11568414,156.5,156.45,0.96875]
[1752090311522,4.11568414,156.51,156.46,6.3897]
[1752090311824,6.3884,156.5,156.45,0.96875]
[1752090312125,2.234,156.52,156.45,5.08443414]
[1752090312624,6.3886,156.49,156.45,5.08443414]
[1752090312825,4.3902,156.52,156.45,5.08443414]
[1752090313125,8.50588414,156.52,156.45,5.08443414]
[1752090313328,6.3882,156.5,156.45,5.08443414]
[1752090313515,8.50588414,156.52,156.45,0.96875]
[1752090314020,6.3885,156.5,156.45,7.35865]
[1752090314220,8.50588414,156.52,156.45,7.35865]
[1752090314727,8.50588414,156.52,156.45,0.96875]
[1752090315628,4.3902,156.52,156.45,7.35885]
[1752090315937,8.50588414,156.52,156.45,0.96875]
[1752090316932,6.3886,156.49,156.46,6.3897]
[1752090317428,6.3884,156.5,156.46,6.3897]
[1752090317632,8.50588414,156.52,156.46,6.3897]
[1752090317934,8.50588414,156.52,156.46,68.3897]
[1752090318231,4.11490479,156.51,156.45,0.96875]
[1752090318428,4.11490479,156.49,156.45,0.96875]
[1752090318630,6.3893,156.48,156.45,0.96875]
[1752090319032,6.3898,156.46,156.45,0.96875]
[1752090323739,4.11490479,156.47,156.38,8.67331837]
[1752090324032,4.11490479,156.47,156.4,6.3918]
[1752090324235,4.11490479,156.47,156.4,62.0]
[1752090324637,4.11490479,156.45,156.38,8.67331837]
[1752090324834,4.11490479,156.39,156.33,8.67331837]
[1752090325037,4.11490479,156.39,156.33,6.3948]
[1752090325234,4.11490479,156.37,156.33,6.3948]
[1752090325538,4.11490479,156.37,156.29,560.59331837]
[1752090325739,4.11490479,156.37,156.31,6.3957]
[1752090325938,4.5811,156.44,156.31,4.11490479]
[1752090326134,4.11490479,156.41,156.33,4.11490479]
[1752090326339,6.3929,156.39,156.35,6.3939]
[1752090327134,6.3929,156.39,156.33,4.11490479]
[1752090327135,4.11490479,156.41,156.36,6.3938]
[1752090327335,4.11490479,156.41,156.33,4.11490479]
[1752090327336,6.3924,156.4,156.3,8.67331837]
[1752090327535,4.11490479,156.39,156.32,4.11490479]
[1752090328432,4.11490479,156.39,156.29,551.92]
[1752090328642,4.11490479,156.39,156.32,6.3952]
[1752090328941,4.11490479,156.39,156.31,4.11490479]
[1752090329141,4.11490479,156.41,156.34,6.3945]
[1752090329348,4.11490479,156.39,156.29,551.92]
[1752090329543,4.11490479,156.4,156.29,4.11490479]
[1752090329746,6.3954,156.33,156.29,6.3965]
[1752090330339,6.3948,156.34,156.3,6.3963]
[1752090330546,4.11490479,156.35,156.26,2.2013]
[1752090330746,4.11490479,156.36,156.28,4.11490479]
[1752090331049,4.11490479,156.34,156.29,62.0]
[1752090331354,4.11490479,156.35,156.29,68.3966]
[1752090331746,6.3952,156.33,156.29,68.3966]
[1752090332055,4.11490479,156.4,156.3,6.396]
[1752090332251,225.54968658,156.42,156.3,6.396]
[1752090332252,6.3946,156.35,156.3,6.396]
[1752090332449,4.11490479,156.32,156.22,12.78822316]
[1752090332651,4.11490479,156.3,156.24,6.3984]
[1752090332956,6.1882599,156.32,156.22,6.1882599]
[1752090333251,2.1649,156.34,156.28,6.3971]
[1752090333455,6.3958,156.32,156.28,6.3971]
[1752090333754,2.1649,156.34,156.27,6.3973]
[1752090333956,6.3961,156.31,156.24,6.1882599]
[1752090334151,2.1649,156.34,156.27,6.3975]
[1752090334356,6.1882599,156.33,156.23,6.1882599]
[1752090334554,6.397,156.29,156.23,6.1882599]
[1752090334759,6.1882599,156.33,156.24,6.3986]
[1752090334957,6.1882599,156.31,156.22,6.1882599]
[1752090335159,6.1882599,156.33,156.25,6.3981]
[1752090335356,6.1882599,156.33,156.25,62.0]
[1752090335559,6.3966,156.3,156.22,6.1882599]
[1752090335852,6.1882599,156.33,156.22,6.1882599]
[1752090336055,6.3962,156.31,156.24,6.1882599]
[1752090336251,8.3531599,156.34,156.24,6.1882599]
[1752090336447,2.1649,156.34,156.24,6.1882599]
[1752090336654,2.2059,156.35,156.28,6.1882599]
[1752090336857,2.2059,156.35,156.31,6.3956]
[1752090337052,552.16,156.36,156.3,6.1882599]
[1752090337561,2.1786,156.39,156.3,6.1882599]
[1752090337753,6.3936,156.37,156.3,6.1882599]
[1752090338054,2.1786,156.39,156.33,6.3948]
[1752090338251,2.1985,156.4,156.34,6.1882599]
[1752090338452,2.1985,156.4,156.35,6.394]
[1752090338858,2.1985,156.4,156.34,6.1882599]
[1752090339358,6.3932,156.38,156.32,6.1882599]
[1752090339553,2.1985,156.4,156.33,6.395]
[1752090339954,6.3939,156.36,156.33,6.395]
[1752090340154,2.1985,156.4,156.32,6.3953]
[1752090340356,2.1985,156.4,156.31,6.1882599]
[1752090340555,6.1882599,156.39,156.29,6.1882599]
[1752090340954,6.3945,156.35,156.29,6.1882599]
[1752090341155,6.3945,156.35,156.31,6.3957]
[1752090341354,6.3945,156.35,156.29,6.1882599]
[1752090341558,2.1985,156.4,156.27,62.0]
[1752090341559,6.3936,156.37,156.31,6.1882599]
[1752090342058,6.3934,156.38,156.33,6.1882599]
[1752090342262,8.3882599,156.43,156.33,6.1882599]
[1752090342263,8.88742197,156.53,156.37,6.17894097]
[1752090342555,552.36,156.54,156.41,6.17894097]
[1752090342556,8.39654097,156.5,156.41,6.17894097]
[1752090342760,8.39654097,156.5,156.43,6.3907]
[1752090342957,8.39654097,156.5,156.35,2.3399]
[1752090343161,8.39654097,156.5,156.39,6.17894097]
[1752090344064,6.3906,156.45,156.41,6.3915]
[1752090344462,8.39654097,156.5,156.39,6.17894097]
[1752090344668,8.39654097,156.5,156.41,6.17894097]
[1752090345756,6.39,156.46,156.42,6.3911]
[1752090345970,8.39654097,156.5,156.41,6.17894097]
[1752090346266,6.3886,156.49,156.46,6.3895]
[1752090346470,8.52454097,156.53,156.45,6.17894097]
[1752090346867,8.51720459,156.53,156.44,6.3903]
[1752090347062,8.51720459,156.53,156.43,6.17160459]
[1752090347468,8.51720459,156.53,156.44,6.3905]
[1752090347865,8.51720459,156.53,156.45,6.3901]
[1752090348273,8.51720459,156.53,156.43,6.17160459]
[1752090348576,2.3456,156.53,156.44,6.17160459]
[1752090348779,552.36,156.54,156.46,6.17160459]
[1752090349472,2.1556,156.59,156.48,6.17160459]
[1752090349667,2.1504,156.58,156.48,6.17160459]
[1752090350463,6.3861,156.55,156.51,6.3875]
[1752090350662,2.1504,156.58,156.5,6.17160459]
[1752090350863,6.17160459,156.56,156.43,66.6471]
[1752090351071,6.387,156.53,156.49,6.3885]
[1752090351274,2.1504,156.58,156.49,6.17160459]
[1752090351676,6.17160459,156.57,156.48,6.17160459]
[1752090352675,6.17160459,156.57,156.48,12.56050459]
[1752090352863,6.17160459,156.55,156.43,66.6471]
[1752090353063,6.17160459,156.53,156.44,12.56210459]
[1752090353363,6.17160459,156.53,156.43,66.6471]
[1752090353575,6.17160459,156.51,156.43,66.6471]
[1752090353768,6.17160459,156.51,156.43,2.3181]
[1752090354170,6.17160459,156.51,156.44,6.3906]
[1752090354371,6.17160459,156.51,156.43,2.3181]
[1752090354771,6.3894,156.47,156.44,6.3903]
[1752090354971,6.3894,156.47,156.43,2.3181]
[1752090355365,6.17160459,156.51,156.43,8.48970459]
[1752090355366,6.3891,156.48,156.43,8.48970459]
[1752090355568,6.17160459,156.51,156.43,8.48970459]
[1752090355772,225.76,156.54,156.43,8.48970459]
[1752090355977,8.31788346,156.58,156.48,6.16748346]
[1752090356371,6.16748346,156.56,156.46,6.16748346]
[1752090356572,2.1504,156.58,156.46,6.16748346]
[1752090356770,6.3868,156.54,156.5,6.3879]
[1752090356965,6.16748346,156.57,156.47,62.0]
[1752090357374,2.1504,156.58,156.5,6.16748346]
[1752090357575,8.31788346,156.58,156.49,6.16748346]
[1752090357879,2.1504,156.58,156.49,6.16748346]
[1752090358073,6.3858,156.56,156.52,6.3873]
[1752090358266,2.1504,156.58,156.49,6.16748346]
[1752090360278,6.16820687,156.57,156.47,6.16820687]
[1752090360671,6.16820687,156.53,156.45,6.16820687]
[1752090360867,6.16820687,156.53,156.44,2.3023]
[1752090361171,6.16820687,156.55,156.47,6.16820687]
[1752090361870,6.3877,156.52,156.48,6.3888]
[1752090362168,6.3877,156.52,156.47,6.16820687]
[1752090362578,6.16820687,156.55,156.47,6.16820687]
[1752090362771,2.1504,156.58,156.47,6.16820687]
[1752090362972,2.1504,156.58,156.49,6.16820687]
[1752090363672,2.1504,156.58,156.51,6.3874]
[1752090364176,8.31860687,156.58,156.51,6.3874]
[1752090364572,8.31860687,156.58,156.5,6.388]
[1752090365268,6.3876,156.52,156.49,6.3884]
[1752090365475,6.16820687,156.54,156.45,68.16820687]
[1752090365873,6.388,156.51,156.45,68.16820687]
[1752090366068,6.16820687,156.54,156.45,68.16820687]
[1752090366273,6.16820687,156.52,156.44,2.3023]
[1752090366581,6.16820687,156.52,156.43,2.3181]
[1752090366977,6.16820687,156.5,156.43,8.7089]
[1752090367279,6.16820687,156.52,156.43,8.48630687]
[1752090367469,6.3891,156.48,156.45,6.39]
[1752090367673,6.16820687,156.52,156.43,8.48630687]
[1752090367874,6.16820687,156.52,156.43,2.3181]
[1752090368180,6.16820687,156.52,156.43,6.3907]
[1752090368482,2.1566,156.51,156.41,6.16820687]
[1752090368681,4.443,156.51,156.43,6.3907]
[1752090368869,4.443,156.51,156.41,6.16820687]
[1752090369075,6.3898,156.46,156.43,6.3909]
[1752090369278,6.3898,156.46,156.43,68.3909]
[1752090369471,10.61120687,156.51,156.43,62.0]
[1752090369870,10.61120687,156.51,156.41,6.16820687]
[1752090370273,6.3894,156.47,156.44,6.3906]
[1752090370479,10.61120687,156.51,156.43,6.16820687]
[1752090370681,6.3899,156.46,156.43,6.3909]
[1752090370876,10.61120687,156.51,156.41,6.16820687]
[1752090371384,6.16820687,156.49,156.39,8.36240687]
[1752090371780,6.3905,156.45,156.41,6.3917]
[1752090372479,6.3906,156.44,156.4,6.3921]
[1752090372682,6.3906,156.44,156.39,6.16820687]
[1752090372875,6.16820687,156.47,156.39,62.0]
[1752090373081,4.443,156.51,156.39,62.0]
[1752090373389,6.16820687,156.48,156.39,62.0]
[1752090373685,6.16820687,156.48,156.41,6.3918]
[1752090374182,6.3904,156.45,156.41,6.3918]
[1752090374687,6.3906,156.44,156.4,6.3921]
[1752090374883,6.3906,156.44,156.39,62.0]
[1752090375082,6.16820687,156.48,156.39,62.0]
[1752090375386,6.3906,156.44,156.41,6.3915]
[1752090375588,6.16820687,156.49,156.41,6.3915]
[1752090375788,6.16820687,156.47,156.36,6.16820687]
[1752090376880,6.16820687,156.47,156.35,2.305]
[1752090376881,6.16820687,156.43,156.35,2.305]
[1752090377085,6.3927,156.39,156.35,6.394]
[1752090377285,6.3927,156.39,156.31,2.2269]
[1752090377286,6.16820687,156.41,156.31,2.2269]
[1752090377482,6.16820687,156.41,156.32,6.3951]
[1752090377682,2.3135,156.42,156.27,2.2789]
[1752090377683,6.16820687,156.37,156.27,2.2789]
[1752090377883,6.16820687,156.37,156.28,6.16820687]
[1752090378088,2.2757,156.4,156.27,2.2789]
[1752090378089,6.16820687,156.35,156.27,2.2789]
[1752090378389,6.16820687,156.33,156.24,6.16820687]
[1752090378582,6.18917166,156.32,156.2,4.6142]
[1752090378885,6.18917166,156.32,156.23,6.18917166]
[1752090379080,6.18917166,156.32,156.24,6.3986]
[1752090379281,6.18917166,156.32,156.21,62.0]
[1752090379488,6.3987,156.25,156.21,62.0]
[1752090379684,6.18917166,156.26,156.17,7.30271821]
[1752090379885,6.19277951,156.26,156.15,2.3353]
[1752090380086,6.3991,156.24,156.15,2.3353]
[1752090380482,6.19277951,156.26,156.15,2.3353]
[1752090380689,6.3991,156.24,156.2,6.4004]
[1752090380881,6.19277951,156.26,156.2,6.4004]
[1752090381083,6.3978,156.27,156.22,6.3996]
[1752090381286,552.08,156.32,156.21,6.19277951]
[1752090381498,6.19277951,156.31,156.23,6.19277951]
[1752090381988,6.3973,156.28,156.23,6.19277951]
[1752090382189,6.19277951,156.31,156.23,6.19277951]
[1752090382491,6.19277951,156.31,156.21,6.19277951]
[1752090382680,6.3975,156.28,156.24,6.3987]
[1752090382882,6.19277951,156.29,156.2,6.19277951]
[1752090383089,6.3985,156.25,156.21,6.3997]
[1752090383389,6.19277951,156.27,156.18,6.19277951]
[1752090383893,552.08,156.32,156.18,6.19277951]
[1752090384090,552.08,156.32,156.2,6.19277951]
[1752090384289,6.19277951,156.3,156.2,6.19277951]
[1752090384493,6.19277951,156.3,156.16,62.0]